[Event "Titled Tuesday Blitz June 27 Late 2023"]
[White "NtcPou"]
[Black "Kohler, Aran"]
[BlackFideId "1002856"]
[WhiteElo "1969"]
[BlackElo "2260"]
[Result "1/2-1/2"]
[Round "4"]
[TimeControl "180+2"]
[Date "2023.06.27"]
[WhiteClock "0:00:03"]
[BlackClock "0:00:11"]
[Board "178"]

1. e4 {[%clk 0:03:00]}  c6 {[%clk 0:02:57]} 2. d4 {[%clk 0:03:00]}  d5 {[%clk 0:02:58]} 3. e5 {[%clk 0:02:59]}  c5 {[%clk 0:02:57]} 4. dxc5 {[%clk 0:02:59]}  e6 {[%clk 0:02:57]} 5. a3 {[%clk 0:02:58]}  Bxc5 {[%clk 0:02:57]} 6. b4 {[%clk 0:02:58]}  Bf8 {[%clk 0:02:55]} 7. Bb2 {[%clk 0:02:54]}  Nc6 {[%clk 0:02:55]} 8. Bd3 {[%clk 0:02:53]}  Nge7 {[%clk 0:02:51]} 9. Nf3 {[%clk 0:02:16]}  Ng6 {[%clk 0:02:49]} 10. O-O {[%clk 0:02:16]}  Be7 {[%clk 0:02:47]} 11. Nbd2 {[%clk 0:02:15]}  O-O {[%clk 0:02:46]} 12. Qe2 {[%clk 0:02:12]}  f6 {[%clk 0:02:44]} 13. g3 {[%clk 0:02:00]}  fxe5 {[%clk 0:02:40]} 14. Nxe5 {[%clk 0:02:01]}  Ncxe5 {[%clk 0:02:39]} 15. Bxe5 {[%clk 0:02:00]}  Nxe5 {[%clk 0:02:39]} 16. Qxe5 {[%clk 0:01:52]}  Bf6 {[%clk 0:02:40]} 17. Qh5 {[%clk 0:01:51]}  g6 {[%clk 0:02:40]} 18. Bxg6 {[%clk 0:01:50]}  hxg6 {[%clk 0:02:40]} 19. Qxg6+ {[%clk 0:01:50]}  Bg7 {[%clk 0:02:41]} 20. Rae1 {[%clk 0:01:47]}  Qf6 {[%clk 0:02:41]} 21. Qd3 {[%clk 0:01:33]}  Bd7 {[%clk 0:02:36]} 22. Re2 {[%clk 0:01:22]}  a6 {[%clk 0:02:25]} 23. Nb3 {[%clk 0:01:20]}  Bb5 {[%clk 0:02:23]} 24. Qe3 {[%clk 0:01:13]}  Bxe2 {[%clk 0:02:20]} 25. Qxe2 {[%clk 0:01:14]}  Rae8 {[%clk 0:02:12]} 26. Nc5 {[%clk 0:01:13]}  Rf7 {[%clk 0:02:06]} 27. Re1 {[%clk 0:01:08]}  e5 {[%clk 0:01:56]} 28. Nd3 {[%clk 0:01:03]}  Qf3 {[%clk 0:01:45]} 29. Qd2 {[%clk 0:00:54]}  Kh7 {[%clk 0:01:41]} 30. Qg5 {[%clk 0:00:47]}  e4 {[%clk 0:01:04]} 31. Nf4 {[%clk 0:00:44]}  Rxf4 {[%clk 0:00:56]} 32. gxf4 {[%clk 0:00:42]}  e3 {[%clk 0:00:51]} 33. fxe3 {[%clk 0:00:25]}  Rxe3 {[%clk 0:00:51]} 34. Qf5+ {[%clk 0:00:24]}  Kg8 {[%clk 0:00:49]} 35. Qc8+ {[%clk 0:00:23]}  Bf8 {[%clk 0:00:48]} 36. Rxe3 {[%clk 0:00:19]}  Qxe3+ {[%clk 0:00:48]} 37. Kg2 {[%clk 0:00:19]}  Qxf4 {[%clk 0:00:43]} 38. Qxb7 {[%clk 0:00:18]}  Qe4+ {[%clk 0:00:38]} 39. Kf1 {[%clk 0:00:16]}  Qh1+ {[%clk 0:00:36]} 40. Ke2 {[%clk 0:00:15]}  Qxh2+ {[%clk 0:00:36]} 41. Kd1 {[%clk 0:00:14]}  Qd6 {[%clk 0:00:32]} 42. Qc8 {[%clk 0:00:11]}  Kf7 {[%clk 0:00:31]} 43. Qf5+ {[%clk 0:00:10]}  Ke7 {[%clk 0:00:30]} 44. Qh7+ {[%clk 0:00:10]}  Kd8 {[%clk 0:00:29]} 45. Qb7 {[%clk 0:00:10]}  Be7 {[%clk 0:00:28]} 46. Qa8+ {[%clk 0:00:08]}  Kd7 {[%clk 0:00:28]} 47. Qb7+ {[%clk 0:00:08]}  Ke8 {[%clk 0:00:28]} 48. Qa8+ {[%clk 0:00:08]}  Kf7 {[%clk 0:00:27]} 49. Qh8 {[%clk 0:00:08]}  Qg6 {[%clk 0:00:22]} 50. Qh1 {[%clk 0:00:05]}  Qg4+ {[%clk 0:00:20]} 51. Kc1 {[%clk 0:00:04]}  Bg5+ {[%clk 0:00:20]} 52. Kb1 {[%clk 0:00:04]}  Qe4 {[%clk 0:00:19]} 53. Qf1+ {[%clk 0:00:04]}  Ke6 {[%clk 0:00:19]} 54. Qxa6+ {[%clk 0:00:05]}  Kf5 {[%clk 0:00:18]} 55. Qd3 {[%clk 0:00:04]}  Qxd3 {[%clk 0:00:17]} 56. cxd3 {[%clk 0:00:05]}  Ke5 {[%clk 0:00:18]} 57. a4 {[%clk 0:00:04]}  Kd6 {[%clk 0:00:18]} 58. Kc2 {[%clk 0:00:03]}  Be3 {[%clk 0:00:19]} 59. Kc3 {[%clk 0:00:03]}  Kc6 {[%clk 0:00:19]} 60. Kb3 {[%clk 0:00:03]}  Bd4 {[%clk 0:00:18]} 61. Kc2 {[%clk 0:00:03]}  Kb6 {[%clk 0:00:17]} 62. Kb3 {[%clk 0:00:04]}  Kc6 {[%clk 0:00:17]} 63. Kc2 {[%clk 0:00:04]}  Bf2 {[%clk 0:00:17]} 64. Kc3 {[%clk 0:00:04]}  Kb6 {[%clk 0:00:17]} 65. d4 {[%clk 0:00:04]}  Kc6 {[%clk 0:00:17]} 66. Kd3 {[%clk 0:00:04]}  Be1 {[%clk 0:00:15]} 67. Ke3 {[%clk 0:00:04]}  Bxb4 {[%clk 0:00:14]} 68. Kf4 {[%clk 0:00:04]}  Bc3 {[%clk 0:00:14]} 69. Ke5 {[%clk 0:00:04]}  Bb2 {[%clk 0:00:13]} 70. a5 {[%clk 0:00:03]}  Bc3 {[%clk 0:00:13]} 71. a6 {[%clk 0:00:03]}  Bxd4+ {[%clk 0:00:10]} 72. Kxd4 {[%clk 0:00:03]}  Kb6 {[%clk 0:00:11]} 73. Kxd5 {[%clk 0:00:03]}  Kxa6 {[%clk 0:00:11]} 1/2-1/2


[Site "https://www.chess.com"]

[Event "Titled Tuesday Blitz June 27 Late 2023"]
[White "Francisco_Ferrari"]
[Black "Dmitriev, Sergey"]
[BlackFideId "14101785"]
[WhiteElo "2237"]
[BlackElo "1935"]
[Result "0-1"]
[Round "4"]
[TimeControl "180+2"]
[Date "2023.06.27"]
[WhiteClock "0:00:26"]
[BlackClock "0:00:25"]
[Board "179"]

1. e4 {[%clk 0:03:00]}  e5 {[%clk 0:02:58]} 2. Nf3 {[%clk 0:03:00]}  Nc6 {[%clk 0:02:57]} 3. d4 {[%clk 0:02:57]}  exd4 {[%clk 0:02:56]} 4. c3 {[%clk 0:02:52]}  d6 {[%clk 0:02:55]} 5. cxd4 {[%clk 0:02:50]}  Nf6 {[%clk 0:02:54]} 6. Nc3 {[%clk 0:02:49]}  Bg4 {[%clk 0:02:42]} 7. Be2 {[%clk 0:02:47]}  Be7 {[%clk 0:02:39]} 8. Be3 {[%clk 0:02:42]}  O-O {[%clk 0:02:36]} 9. h3 {[%clk 0:02:38]}  Bh5 {[%clk 0:02:33]} 10. g4 {[%clk 0:02:36]}  Bg6 {[%clk 0:02:33]} 11. Nd2 {[%clk 0:02:36]}  d5 {[%clk 0:02:23]} 12. e5 {[%clk 0:02:34]}  Ne4 {[%clk 0:02:23]} 13. Ndxe4 {[%clk 0:02:33]}  dxe4 {[%clk 0:02:15]} 14. Qd2 {[%clk 0:02:25]}  Bh4 {[%clk 0:02:07]} 15. g5 {[%clk 0:02:08]}  Nb4 {[%clk 0:01:46]} 16. Rg1 {[%clk 0:02:01]}  f6 {[%clk 0:01:40]} 17. gxf6 {[%clk 0:01:52]}  gxf6 {[%clk 0:01:37]} 18. Nxe4 {[%clk 0:01:50]}  Nd5 {[%clk 0:01:12]} 19. Rg4 {[%clk 0:01:44]}  Nxe3 {[%clk 0:01:09]} 20. Qxe3 {[%clk 0:01:42]}  f5 {[%clk 0:01:07]} 21. Bc4+ {[%clk 0:01:27]}  Kh8 {[%clk 0:01:05]} 22. Rxg6 {[%clk 0:01:25]}  fxe4 {[%clk 0:00:59]} 23. Qh6 {[%clk 0:01:18]}  Bxf2+ {[%clk 0:00:53]} 24. Ke2 {[%clk 0:01:14]}  Qe7 {[%clk 0:00:49]} 25. Rf1 {[%clk 0:01:10]}  e3 {[%clk 0:00:43]} 26. Bd3 {[%clk 0:00:51]}  Rf7 {[%clk 0:00:31]} 27. Rc1 {[%clk 0:00:32]}  Qb4 {[%clk 0:00:27]} 28. Rc2 {[%clk 0:00:26]}  Qe1# {[%clk 0:00:25]} 0-1


[Site "https://www.chess.com"]

[Event "Titled Tuesday Blitz June 27 Late 2023"]
[White "Burke, Paul"]
[Black "Fernandez Hernandez, Gerardo"]
[WhiteFideId "2605767"]
[BlackFideId "2207400"]
[WhiteElo "1923"]
[BlackElo "2206"]
[Result "1-0"]
[Round "4"]
[TimeControl "180+2"]
[Date "2023.06.27"]
[WhiteClock "0:01:14"]
[BlackClock "0:00:00"]
[Board "180"]

1. e4 {[%clk 0:03:00]}  e6 {[%clk 0:02:59]} 2. d4 {[%clk 0:03:00]}  d5 {[%clk 0:03:00]} 3. e5 {[%clk 0:03:00]}  c5 {[%clk 0:02:59]} 4. Qg4 {[%clk 0:03:00]}  cxd4 {[%clk 0:02:58]} 5. Nf3 {[%clk 0:03:00]}  Nc6 {[%clk 0:02:59]} 6. Bd3 {[%clk 0:03:00]}  Nge7 {[%clk 0:02:35]} 7. O-O {[%clk 0:02:57]}  Ng6 {[%clk 0:02:33]} 8. Qg3 {[%clk 0:02:58]}  Qc7 {[%clk 0:02:25]} 9. Re1 {[%clk 0:02:57]}  Bb4 {[%clk 0:02:17]} 10. c3 {[%clk 0:02:57]}  dxc3 {[%clk 0:02:17]} 11. bxc3 {[%clk 0:02:57]}  Ba5 {[%clk 0:02:09]} 12. h4 {[%clk 0:02:57]}  Bd7 {[%clk 0:01:42]} 13. h5 {[%clk 0:02:56]}  Nge7 {[%clk 0:01:42]} 14. Ba3 {[%clk 0:02:55]}  O-O-O {[%clk 0:01:13]} 15. Bd6 {[%clk 0:02:54]}  Qb6 {[%clk 0:01:12]} 16. Nbd2 {[%clk 0:02:41]}  Bxc3 {[%clk 0:00:55]} 17. Rab1 {[%clk 0:02:41]}  Qa5 {[%clk 0:00:55]} 18. Nb3 {[%clk 0:02:37]}  Qxa2 {[%clk 0:00:36]} 19. Nc5 {[%clk 0:02:20]}  Na5 {[%clk 0:00:13]} 20. Rec1 {[%clk 0:02:09]}  Nec6 {[%clk 0:00:10]} 21. Nxd7 {[%clk 0:01:59]}  Rxd7 {[%clk 0:00:09]} 22. Qxg7 {[%clk 0:01:59]}  Rhd8 {[%clk 0:00:08]} 23. Qf6 {[%clk 0:01:44]}  Rxd6 {[%clk 0:00:07]} 24. Rxc3 {[%clk 0:01:39]}  R6d7 {[%clk 0:00:07]} 25. Rcc1 {[%clk 0:01:34]}  Nc4 {[%clk 0:00:06]} 26. Ra1 {[%clk 0:01:22]}  Qb2 {[%clk 0:00:05]} 27. Bxh7 {[%clk 0:01:18]}  Kb8 {[%clk 0:00:02]} 28. Bd3 {[%clk 0:01:15]}  b6 {[%clk 0:00:00]} 29. h6 {[%clk 0:01:14]} 1-0


[Site "https://www.chess.com"]

[Event "Titled Tuesday Blitz June 27 Late 2023"]
[White "Carlsen, Magnus"]
[Black "Korobov, Anton"]
[WhiteFideId "1503014"]
[BlackFideId "14105730"]
[WhiteElo "3296"]
[BlackElo "2982"]
[Result "1-0"]
[Round "5"]
[TimeControl "180+2"]
[Date "2023.06.27"]
[WhiteClock "0:02:12"]
[BlackClock "0:01:07"]
[Board "1"]

1. e4 {[%clk 0:02:57]}  c5 {[%clk 0:02:59]} 2. Nf3 {[%clk 0:02:57]}  d6 {[%clk 0:02:59]} 3. Bc4 {[%clk 0:02:58]}  Nf6 {[%clk 0:02:58]} 4. d3 {[%clk 0:02:58]}  Nc6 {[%clk 0:02:59]} 5. O-O {[%clk 0:02:58]}  Bg4 {[%clk 0:02:59]} 6. c3 {[%clk 0:02:55]}  e6 {[%clk 0:02:58]} 7. h3 {[%clk 0:02:54]}  Bh5 {[%clk 0:02:58]} 8. Bb3 {[%clk 0:02:53]}  Be7 {[%clk 0:02:58]} 9. Nbd2 {[%clk 0:02:51]}  O-O {[%clk 0:02:58]} 10. Re1 {[%clk 0:02:52]}  d5 {[%clk 0:02:52]} 11. exd5 {[%clk 0:02:51]}  Nxd5 {[%clk 0:02:52]} 12. Ne4 {[%clk 0:02:51]}  Qc7 {[%clk 0:02:49]} 13. Ng3 {[%clk 0:02:28]}  Bg6 {[%clk 0:02:48]} 14. Bxd5 {[%clk 0:02:25]}  exd5 {[%clk 0:02:48]} 15. d4 {[%clk 0:02:25]}  c4 {[%clk 0:02:42]} 16. Ne5 {[%clk 0:02:25]}  Nxe5 {[%clk 0:02:29]} 17. dxe5 {[%clk 0:02:24]}  Rad8 {[%clk 0:02:19]} 18. Be3 {[%clk 0:02:24]}  Qxe5 {[%clk 0:02:05]} 19. Bb6 {[%clk 0:02:20]}  Qd6 {[%clk 0:02:04]} 20. Bxd8 {[%clk 0:02:19]}  Rxd8 {[%clk 0:02:04]} 21. Qf3 {[%clk 0:02:19]}  Bf6 {[%clk 0:02:00]} 22. Rad1 {[%clk 0:02:18]}  h6 {[%clk 0:01:57]} 23. Nf5 {[%clk 0:02:16]}  Qc5 {[%clk 0:01:54]} 24. Nxh6+ {[%clk 0:02:16]}  Kf8 {[%clk 0:01:44]} 25. Ng4 {[%clk 0:02:14]}  Be4 {[%clk 0:01:38]} 26. Qf4 {[%clk 0:02:12]}  Be7 {[%clk 0:01:27]} 27. Ne5 {[%clk 0:02:11]}  f6 {[%clk 0:01:11]} 28. Rxe4 {[%clk 0:02:11]}  dxe4 {[%clk 0:01:07]} 29. Rxd8+ {[%clk 0:02:12]} 1-0


[Site "https://www.chess.com"]

[Event "Titled Tuesday Blitz June 27 Late 2023"]
[White "Indjic, Aleksandar"]
[Black "Firouzja, Alireza"]
[WhiteFideId "911925"]
[BlackFideId "12573981"]
[WhiteElo "2958"]
[BlackElo "3121"]
[Result "1/2-1/2"]
[Round "5"]
[TimeControl "180+2"]
[Date "2023.06.27"]
[WhiteClock "0:00:06"]
[BlackClock "0:00:04"]
[Board "3"]

1. e4 {[%clk 0:03:00]}  c6 {[%clk 0:02:57]} 2. d4 {[%clk 0:03:00]}  d5 {[%clk 0:02:58]} 3. e5 {[%clk 0:03:01]}  Bf5 {[%clk 0:02:57]} 4. h4 {[%clk 0:03:01]}  h5 {[%clk 0:02:57]} 5. Bd3 {[%clk 0:03:01]}  Bxd3 {[%clk 0:02:57]} 6. Qxd3 {[%clk 0:03:02]}  e6 {[%clk 0:02:57]} 7. Bg5 {[%clk 0:03:02]}  Qa5+ {[%clk 0:02:48]} 8. Nd2 {[%clk 0:03:00]}  Ne7 {[%clk 0:02:48]} 9. Ne2 {[%clk 0:02:58]}  Qa6 {[%clk 0:02:48]} 10. c4 {[%clk 0:02:55]}  Nf5 {[%clk 0:02:46]} 11. O-O {[%clk 0:02:51]}  Bb4 {[%clk 0:02:39]} 12. b3 {[%clk 0:02:48]}  Nd7 {[%clk 0:02:24]} 13. Ng3 {[%clk 0:02:43]}  Ne7 {[%clk 0:02:09]} 14. a3 {[%clk 0:02:31]}  Bxd2 {[%clk 0:02:05]} 15. Qxd2 {[%clk 0:02:29]}  dxc4 {[%clk 0:02:01]} 16. Bxe7 {[%clk 0:02:13]}  Kxe7 {[%clk 0:01:59]} 17. Qg5+ {[%clk 0:02:12]}  Kf8 {[%clk 0:01:59]} 18. f4 {[%clk 0:01:51]}  Qb6 {[%clk 0:01:41]} 19. bxc4 {[%clk 0:01:51]}  Qxd4+ {[%clk 0:01:21]} 20. Kh2 {[%clk 0:01:47]}  Qc5 {[%clk 0:01:17]} 21. Ne4 {[%clk 0:01:38]}  Qe7 {[%clk 0:01:16]} 22. Qg3 {[%clk 0:01:37]}  Rh6 {[%clk 0:01:09]} 23. Rad1 {[%clk 0:01:34]}  Nc5 {[%clk 0:00:52]} 24. Nd6 {[%clk 0:01:24]}  Rg6 {[%clk 0:00:51]} 25. Qf2 {[%clk 0:01:24]}  b6 {[%clk 0:00:47]} 26. g3 {[%clk 0:01:24]}  Rg4 {[%clk 0:00:44]} 27. Qf3 {[%clk 0:01:10]}  Rd8 {[%clk 0:00:33]} 28. Qxc6 {[%clk 0:01:05]}  Kg8 {[%clk 0:00:31]} 29. Qf3 {[%clk 0:01:03]}  f6 {[%clk 0:00:26]} 30. exf6 {[%clk 0:00:33]}  Qxf6 {[%clk 0:00:23]} 31. Rf2 {[%clk 0:00:26]}  Qg6 {[%clk 0:00:19]} 32. Rfd2 {[%clk 0:00:24]}  Rf8 {[%clk 0:00:19]} 33. Re2 {[%clk 0:00:21]}  Qf6 {[%clk 0:00:16]} 34. Ne4 {[%clk 0:00:19]}  Nxe4 {[%clk 0:00:15]} 35. Qxe4 {[%clk 0:00:18]}  Rg6 {[%clk 0:00:10]} 36. Qe5 {[%clk 0:00:18]}  Qf5 {[%clk 0:00:10]} 37. Qxf5 {[%clk 0:00:15]}  Rxf5 {[%clk 0:00:10]} 38. Re5 {[%clk 0:00:14]}  Rxe5 {[%clk 0:00:10]} 39. fxe5 {[%clk 0:00:14]}  Rg4 {[%clk 0:00:11]} 40. Rd8+ {[%clk 0:00:15]}  Kh7 {[%clk 0:00:10]} 41. c5 {[%clk 0:00:05]}  bxc5 {[%clk 0:00:10]} 42. Rd6 {[%clk 0:00:05]}  Kg6 {[%clk 0:00:06]} 43. Rxe6+ {[%clk 0:00:05]}  Kf5 {[%clk 0:00:07]} 44. Ra6 {[%clk 0:00:05]}  Kxe5 {[%clk 0:00:07]} 45. Rxa7 {[%clk 0:00:06]}  c4 {[%clk 0:00:07]} 46. a4 {[%clk 0:00:03]}  c3 {[%clk 0:00:06]} 47. Rc7 {[%clk 0:00:04]}  Kd4 {[%clk 0:00:07]} 48. a5 {[%clk 0:00:04]}  Kd3 {[%clk 0:00:07]} 49. a6 {[%clk 0:00:05]}  Ra4 {[%clk 0:00:05]} 50. Rd7+ {[%clk 0:00:03]}  Kc4 {[%clk 0:00:05]} 51. Rxg7 {[%clk 0:00:03]}  Rxa6 {[%clk 0:00:05]} 52. Rc7+ {[%clk 0:00:03]}  Kb3 {[%clk 0:00:05]} 53. g4 {[%clk 0:00:03]}  hxg4 {[%clk 0:00:05]} 54. Kg3 {[%clk 0:00:04]}  Ra4 {[%clk 0:00:04]} 55. h5 {[%clk 0:00:04]}  c2 {[%clk 0:00:05]} 56. h6 {[%clk 0:00:03]}  Ra6 {[%clk 0:00:03]} 57. Rb7+ {[%clk 0:00:02]}  Kc3 {[%clk 0:00:02]} 58. Rc7+ {[%clk 0:00:03]}  Kb2 {[%clk 0:00:03]} 59. Rb7+ {[%clk 0:00:03]}  Kc3 {[%clk 0:00:02]} 60. Rc7+ {[%clk 0:00:03]}  Kd2 {[%clk 0:00:03]} 61. Rd7+ {[%clk 0:00:03]}  Ke3 {[%clk 0:00:03]} 62. Re7+ {[%clk 0:00:04]}  Kd3 {[%clk 0:00:03]} 63. Rd7+ {[%clk 0:00:04]}  Ke4 {[%clk 0:00:03]} 64. Rc7 {[%clk 0:00:04]}  Rxh6 {[%clk 0:00:02]} 65. Rxc2 {[%clk 0:00:04]}  Rg6 {[%clk 0:00:02]} 66. Rc4+ {[%clk 0:00:03]}  Kf5 {[%clk 0:00:03]} 67. Rc5+ {[%clk 0:00:04]}  Kf6 {[%clk 0:00:03]} 68. Rc6+ {[%clk 0:00:04]}  Kg5 {[%clk 0:00:03]} 69. Rxg6+ {[%clk 0:00:05]}  Kxg6 {[%clk 0:00:04]} 70. Kxg4 {[%clk 0:00:06]} 1/2-1/2


[Site "https://www.chess.com"]

[Event "Titled Tuesday Blitz June 27 Late 2023"]
[White "Horvath, Dominik"]
[Black "Sargsyan, Shant"]
[WhiteFideId "1642561"]
[BlackFideId "13306766"]
[WhiteElo "2887"]
[BlackElo "3008"]
[Result "1/2-1/2"]
[Round "5"]
[TimeControl "180+2"]
[Date "2023.06.27"]
[WhiteClock "0:00:15"]
[BlackClock "0:00:24"]
[Board "6"]

1. e4 {[%clk 0:03:00]}  g6 {[%clk 0:03:00]} 2. d4 {[%clk 0:03:00]}  Nf6 {[%clk 0:03:00]} 3. e5 {[%clk 0:02:56]}  Nh5 {[%clk 0:03:00]} 4. h4 {[%clk 0:02:57]}  d6 {[%clk 0:02:58]} 5. Nf3 {[%clk 0:02:57]}  dxe5 {[%clk 0:02:57]} 6. Nxe5 {[%clk 0:02:57]}  Bg7 {[%clk 0:02:58]} 7. Be2 {[%clk 0:02:55]}  Bxe5 {[%clk 0:02:56]} 8. dxe5 {[%clk 0:02:54]}  Qxd1+ {[%clk 0:02:57]} 9. Bxd1 {[%clk 0:02:54]}  Nc6 {[%clk 0:02:57]} 10. g4 {[%clk 0:02:23]}  Ng7 {[%clk 0:02:57]} 11. f4 {[%clk 0:02:15]}  h5 {[%clk 0:02:56]} 12. gxh5 {[%clk 0:02:13]}  Nxh5 {[%clk 0:02:55]} 13. Nc3 {[%clk 0:02:11]}  Bf5 {[%clk 0:02:52]} 14. Be3 {[%clk 0:02:02]}  O-O-O {[%clk 0:02:52]} 15. Kf2 {[%clk 0:01:27]}  Ng7 {[%clk 0:02:46]} 16. Rc1 {[%clk 0:01:21]}  Nd4 {[%clk 0:02:43]} 17. Ne2 {[%clk 0:01:19]}  Nxe2 {[%clk 0:02:34]} 18. Bxe2 {[%clk 0:01:17]}  Be4 {[%clk 0:02:35]} 19. Bg4+ {[%clk 0:01:14]}  e6 {[%clk 0:02:31]} 20. Rh2 {[%clk 0:01:13]}  b6 {[%clk 0:02:29]} 21. Ke1 {[%clk 0:01:10]}  Nf5 {[%clk 0:02:23]} 22. Bxf5 {[%clk 0:01:08]}  Bxf5 {[%clk 0:02:14]} 23. Rd1 {[%clk 0:01:06]}  Rxd1+ {[%clk 0:02:11]} 24. Kxd1 {[%clk 0:01:07]}  Bg4+ {[%clk 0:02:11]} 25. Kd2 {[%clk 0:01:05]}  Rd8+ {[%clk 0:02:11]} 26. Kc3 {[%clk 0:01:02]}  Rd1 {[%clk 0:02:11]} 27. Rg2 {[%clk 0:01:01]}  Bf5 {[%clk 0:02:06]} 28. Rg1 {[%clk 0:01:01]}  Rd8 {[%clk 0:02:04]} 29. b3 {[%clk 0:01:01]}  Kb7 {[%clk 0:02:04]} 30. Bf2 {[%clk 0:00:58]}  c5 {[%clk 0:02:03]} 31. a3 {[%clk 0:00:55]}  Kc6 {[%clk 0:02:03]} 32. Rc1 {[%clk 0:00:54]}  a5 {[%clk 0:01:59]} 33. b4 {[%clk 0:00:53]}  cxb4+ {[%clk 0:01:59]} 34. axb4 {[%clk 0:00:53]}  a4 {[%clk 0:01:59]} 35. Be3 {[%clk 0:00:43]}  Kb5 {[%clk 0:01:59]} 36. Kb2 {[%clk 0:00:14]}  Kxb4 {[%clk 0:01:49]} 37. Bxb6 {[%clk 0:00:14]}  a3+ {[%clk 0:01:49]} 38. Ka2 {[%clk 0:00:12]}  Rd2 {[%clk 0:01:46]} 39. Kb1 {[%clk 0:00:13]}  Rh2 {[%clk 0:01:43]} 40. Bd8 {[%clk 0:00:10]}  Rf2 {[%clk 0:01:35]} 41. Be7+ {[%clk 0:00:11]}  Ka4 {[%clk 0:01:30]} 42. Bc5 {[%clk 0:00:10]}  Rxf4 {[%clk 0:01:25]} 43. Ka2 {[%clk 0:00:10]}  Rxh4 {[%clk 0:01:13]} 44. Bxa3 {[%clk 0:00:10]}  Rh2 {[%clk 0:01:13]} 45. Kb2 {[%clk 0:00:09]}  Bxc2 {[%clk 0:01:12]} 46. Be7 {[%clk 0:00:04]}  Be4+ {[%clk 0:01:04]} 47. Kc3 {[%clk 0:00:04]}  Kb5 {[%clk 0:00:55]} 48. Kd4 {[%clk 0:00:04]}  Bd5 {[%clk 0:00:54]} 49. Rc7 {[%clk 0:00:04]}  Rh7 {[%clk 0:00:34]} 50. Bf6 {[%clk 0:00:05]}  Bc6 {[%clk 0:00:33]} 51. Ke3 {[%clk 0:00:04]}  Kc5 {[%clk 0:00:30]} 52. Kf4 {[%clk 0:00:05]}  Kd5 {[%clk 0:00:29]} 53. Rc8 {[%clk 0:00:05]}  Rh5 {[%clk 0:00:24]} 54. Rd8+ {[%clk 0:00:06]}  Kc5 {[%clk 0:00:24]} 55. Rf8 {[%clk 0:00:06]}  Rf5+ {[%clk 0:00:23]} 56. Ke3 {[%clk 0:00:06]}  g5 {[%clk 0:00:22]} 57. Rxf7 {[%clk 0:00:06]}  g4 {[%clk 0:00:22]} 58. Rg7 {[%clk 0:00:07]}  Bf3 {[%clk 0:00:22]} 59. Rg5 {[%clk 0:00:07]}  Rxg5 {[%clk 0:00:18]} 60. Bxg5 {[%clk 0:00:07]}  Kd5 {[%clk 0:00:19]} 61. Bf6 {[%clk 0:00:07]}  Bd1 {[%clk 0:00:19]} 62. Kf2 {[%clk 0:00:08]}  Ke4 {[%clk 0:00:18]} 63. Kg3 {[%clk 0:00:09]}  Kf5 {[%clk 0:00:19]} 64. Bg7 {[%clk 0:00:09]}  Bf3 {[%clk 0:00:19]} 65. Bf6 {[%clk 0:00:10]}  Ke4 {[%clk 0:00:19]} 66. Bg7 {[%clk 0:00:11]}  Ke3 {[%clk 0:00:18]} 67. Bf6 {[%clk 0:00:11]}  Kd3 {[%clk 0:00:19]} 68. Bg7 {[%clk 0:00:12]}  Kd4 {[%clk 0:00:20]} 69. Bf6 {[%clk 0:00:13]}  Ke4 {[%clk 0:00:21]} 70. Bg7 {[%clk 0:00:13]}  Kf5 {[%clk 0:00:22]} 71. Bf6 {[%clk 0:00:14]}  Kg6 {[%clk 0:00:23]} 72. Bh8 {[%clk 0:00:14]}  Kh7 {[%clk 0:00:22]} 73. Bf6 {[%clk 0:00:15]}  Kg6 {[%clk 0:00:23]} 74. Bh8 {[%clk 0:00:15]}  Kf5 {[%clk 0:00:24]} 75. Bf6 {[%clk 0:00:15]} 1/2-1/2


[Site "https://www.chess.com"]

[Event "Titled Tuesday Blitz June 27 Late 2023"]
[White "Tiglon, Bryce"]
[Black "Galperin, Platon"]
[WhiteFideId "2087456"]
[BlackFideId "14165414"]
[WhiteElo "2794"]
[BlackElo "3006"]
[Result "1-0"]
[Round "5"]
[TimeControl "180+2"]
[Date "2023.06.27"]
[WhiteClock "0:00:02"]
[BlackClock "0:00:00"]
[Board "7"]

1. Nf3 {[%clk 0:03:00]}  Nf6 {[%clk 0:02:59]} 2. e3 {[%clk 0:03:01]}  g6 {[%clk 0:02:59]} 3. d4 {[%clk 0:03:01]}  Bg7 {[%clk 0:03:00]} 4. b3 {[%clk 0:03:01]}  c5 {[%clk 0:02:59]} 5. Be2 {[%clk 0:02:55]}  cxd4 {[%clk 0:02:58]} 6. exd4 {[%clk 0:02:54]}  O-O {[%clk 0:02:55]} 7. O-O {[%clk 0:02:54]}  d5 {[%clk 0:02:55]} 8. Bb2 {[%clk 0:02:54]}  Nh5 {[%clk 0:02:54]} 9. Ne5 {[%clk 0:02:42]}  Nf4 {[%clk 0:02:54]} 10. Bf3 {[%clk 0:02:42]}  Nc6 {[%clk 0:02:53]} 11. Qd2 {[%clk 0:02:34]}  Bh6 {[%clk 0:02:43]} 12. Qd1 {[%clk 0:02:31]}  f6 {[%clk 0:02:38]} 13. Nxc6 {[%clk 0:02:25]}  bxc6 {[%clk 0:02:39]} 14. Re1 {[%clk 0:02:24]}  Bf5 {[%clk 0:02:33]} 15. Nc3 {[%clk 0:01:54]}  e5 {[%clk 0:02:04]} 16. dxe5 {[%clk 0:01:54]}  fxe5 {[%clk 0:02:04]} 17. Rxe5 {[%clk 0:01:55]}  Bg7 {[%clk 0:02:03]} 18. Re1 {[%clk 0:01:53]}  Qg5 {[%clk 0:01:46]} 19. Na4 {[%clk 0:01:34]}  Be4 {[%clk 0:01:13]} 20. Kf1 {[%clk 0:00:47]}  Nh3 {[%clk 0:00:52]} 21. Re3 {[%clk 0:00:39]}  Qh4 {[%clk 0:00:31]} 22. g3 {[%clk 0:00:30]}  Qh6 {[%clk 0:00:18]} 23. Bxg7 {[%clk 0:00:27]}  Qxg7 {[%clk 0:00:19]} 24. Kg2 {[%clk 0:00:21]}  Qf6 {[%clk 0:00:08]} 25. Bxe4 {[%clk 0:00:14]}  Qxf2+ {[%clk 0:00:03]} 26. Kxh3 {[%clk 0:00:14]}  Qxe3 {[%clk 0:00:04]} 27. Bd3 {[%clk 0:00:10]}  Rf2 {[%clk 0:00:03]} 28. Qg4 {[%clk 0:00:07]}  Raf8 {[%clk 0:00:00]} 29. Bxg6 {[%clk 0:00:02]} 1-0


[Site "https://www.chess.com"]